fUSD/lending_fUSD_20240404
["ID","MTS","AMOUNT","RATE_DAILY","PERIOD"]
[321433939,1712189370126,-150.0,0.00018268,2]
[321433954,1712189432241,-796.4595122,0.00018267,2]
[321433955,1712189432251,-175.55,0.0002086,2]
[321433956,1712189432262,-65963.77423895,0.0002298,2]
[321433957,1712189432272,-270.79950583,0.00024,2]
[321433958,1712189432282,-233.88,0.00024425,2]
[321433959,1712189432291,-1552.1348,0.00024598,2]
[321433960,1712189432301,-1242.5883,0.00024598,2]
[321433961,1712189432312,-1000.0,0.00024598,2]
[321433962,1712189432322,-2500.0,0.00024598,2]
[321433963,1712189432333,-94290.4897,0.00024598,2]
[321433964,1712189432344,-500.0,0.00024698,2]
[321433965,1712189432360,-1000.0,0.00024698,2]
[321433966,1712189432369,-39899.8447,0.00024698,2]
[321433967,1712189432379,-100000.0,0.00024698,2]
[321433968,1712189432389,-183.2008119,0.000247,2]
[321433969,1712189432398,-7051.508491,0.000248,2]
[321433970,1712189432407,-205.66361193,0.000248,2]
[321433971,1712189432416,-205.66361191,0.00024814,2]
[321433972,1712189432426,-205.66361191,0.00024829,2]
[321433973,1712189432434,-205.66361191,0.00024843,2]
[321433974,1712189432443,-499.99,0.00024899,2]
[321433975,1712189432453,-79243.6796375,0.00024899,2]
[321433976,1712189432489,-1055.78402483,0.00024899,2]
[321433977,1712189432500,-746.97343825,0.00024899,2]
[321433978,1712189432617,-3746.61477178,0.00024899,2]
[321433982,1712189432656,-715.30775978,0.00024899,2]
[321433984,1712189432667,-1618.98626268,0.00024899,2]
[321433986,1712189432680,-1115.74896353,0.00024899,2]
[321433987,1712189432697,-544.85215758,0.00024899,2]
[321433993,1712189438198,-205.66361191,0.00024857,2]
[321433994,1712189438208,-6394.33638809,0.00024899,2]
[321433995,1712189438281,-0.00919228,0.00024899,2]
[321433999,1712189438704,-1031.45246329,0.00024899,2]
[321434000,1712189438715,-808.75030777,0.00024899,2]
[321434001,1712189438726,-741.27723955,0.00024899,2]
[321434002,1712189438738,-420.8888349,0.00024899,2]
[321434003,1712189438748,-324.95664198,0.00024899,2]
[321434004,1712189438761,-454.09389728,0.00024899,2]
[321434008,1712189438874,-146036.28801893,0.00024899,2]
[321434009,1712189438883,-183.20081189,0.000249,2]
[321434010,1712189438893,-7500.0,0.000249,2]
[321434011,1712189438903,-5222.67279347,0.00024999,2]
[321434012,1712189438913,-1054.01374242,0.00024999,2]
[321434013,1712189438923,-194542.66591429,0.00024999,2]
[321434014,1712189438933,-150.01,0.00024999,2]
[321434015,1712189438943,-1315.03009678,0.00024999,2]
[321434016,1712189438954,-228.21476922,0.00025,2]
[321434017,1712189438965,-1730681.5265602,0.00025,2]
[321434018,1712189439455,-26995.32,0.00025,2]
[321434050,1712189440405,-205.66361191,0.00024871,2]
[321434052,1712189440415,-3134.21582718,0.00025,2]
[321434090,1712189446508,-426.27508059,0.00024598,2]
[321434091,1712189446530,-17570.0,0.00024598,2]
[321434093,1712189665904,1000.0,0.00040448,30]
[321434094,1712189693406,250.0,0.00023,3]
[321434095,1712189748301,806.0,0.00040364,30]
[321434096,1712189854091,150.0,0.00040364,30]
[321434097,1712189856266,150.0,0.00040364,30]
[321434098,1712189856356,161.82,0.00040364,30]
[321434100,1712190349270,904.0,0.00040742,30]
[321434107,1712190631704,-155.0,0.00020758,2]
[321434108,1712190631714,-996.82,0.00021712,2]
[321434109,1712190631723,-68.08806987,0.00023413,2]
[321434110,1712190631738,-181.91193013,0.00023413,2]
[321434111,1712190631748,-200.0,0.00023413,2]
[321434112,1712190631757,-835.39261148,0.00023496,2]
[321434113,1712190631768,-164.60738852,0.00023496,2]
[321434114,1712190631777,-266.53593077,0.00023591,2]
[321434115,1712190631788,-190.04406923,0.00023591,2]
[321434116,1712190631798,-462.11743282,0.00023678,2]
[321434120,1712190631824,-816.24453498,0.00023678,2]
[321434122,1712190631835,-575.17710851,0.00023678,2]
[321434129,1712190638504,-180.11092369,0.00023678,2]
[321434130,1712190638515,-153.02,0.00023678,2]
[321434131,1712190638524,-150.0,0.00023729,2]
[321434132,1712190638537,-1431.22,0.0002373,2]
[321434133,1712190638546,-4806.01,0.00023753,2]
[321434134,1712190638555,-161.99,0.00023874,2]
[321434135,1712190638565,-996.82,0.00023976,2]
[321434136,1712190638575,-595.59352991,0.00024104,2]
[321434137,1712190638584,-163.75,0.00024232,2]
[321434138,1712190638593,-1400.66199962,0.00024498,2]
[321434139,1712190638603,-1285.39757447,0.00024498,2]
[321434140,1712190638613,-1718.95257555,0.00024498,2]
[321434141,1712190638622,-743.7063,0.00024498,2]
[321434142,1712190638631,-2500.0,0.00024498,2]
[321434143,1712190638640,-499.99,0.00024498,2]
[321434144,1712190638649,-1400.66199954,0.00024543,2]
[321434145,1712190638659,-1718.95257548,0.00024543,2]
[321434146,1712190638668,-1285.39757445,0.00024555,2]
[321434147,1712190638677,-1400.66199954,0.00024587,2]
[321434148,1712190638686,-1718.95257548,0.00024587,2]
[321434149,1712190638696,-201.21727908,0.00024596,2]
[321434150,1712190638705,-13593.24005819,0.00024596,2]
[321434151,1712190638716,-223.86282589,0.00024596,2]
[321434152,1712190638726,-3961.90654296,0.00024596,2]
[321434153,1712190638736,-247.26955281,0.00024596,2]
[321434154,1712190638745,-195.31186243,0.00024596,2]
[321434155,1712190638756,-1054.01374242,0.00024596,2]
[321434156,1712190638765,-155.16191153,0.00024596,2]
[321434157,1712190638775,-81582.00375717,0.00024597,2]
[321434158,1712190638784,-272.94990389,0.00024597,2]
[321434159,1712190638794,-82003.72491941,0.00024598,2]
[321434160,1712190638804,-1000.0,0.00024598,2]
[321434161,1712190638816,-500.0,0.00024598,2]
[321434162,1712190638825,-245000.0,0.00024598,2]
[321434163,1712190638835,-2002.8544,0.00024598,2]
[321434164,1712190638844,-1285.39757445,0.00024613,2]
[321434165,1712190638853,-1400.66199954,0.00024632,2]
[321434166,1712190638862,-1718.95257548,0.00024632,2]
[321434167,1712190638871,-1285.39757445,0.0002467,2]
[321434168,1712190638880,-1400.66199954,0.00024677,2]
[321434169,1712190638889,-1718.95257548,0.00024677,2]
[321434170,1712190638900,-1400.66199954,0.00024721,2]
[321434171,1712190638910,-1718.95257548,0.00024721,2]
[321434172,1712190638919,-760.9322074,0.00024728,2]
[321434173,1712190638930,-1285.39757445,0.00024728,2]
[321434174,1712190638939,-688.97305,0.0002475,2]
[321434175,1712190638949,-760.9322074,0.00024756,2]
[321434176,1712190638958,-1400.66199954,0.00024766,2]
[321434177,1712190638966,-1718.95257548,0.00024766,2]
[321434178,1712190638975,-760.9322074,0.00024785,2]
[321434179,1712190638984,-1285.39757445,0.00024785,2]
[321434180,1712190638993,-1400.66199954,0.00024811,2]
[321434181,1712190639002,-1718.95257548,0.00024811,2]
[321434182,1712190639011,-760.9322074,0.00024814,2]
[321434183,1712190639021,-760.9322074,0.00024843,2]
[321434184,1712190639030,-1285.39757445,0.00024843,2]
[321434185,1712190639044,-1400.66199954,0.00024855,2]
[321434186,1712190639054,-1718.95257548,0.00024855,2]
[321434187,1712190639065,-760.9322074,0.00024871,2]
[321434188,1712190639075,-1000.0,0.000249,2]
[321434189,1712190639084,-10000.0,0.000249,2]
[321434190,1712190639093,-192.14525364,0.000249,2]
[321434191,1712190639103,-152.9137592,0.000249,2]
[321434192,1712190639112,-339.18576983,0.000249,2]
[321434193,1712190639122,-1755.60302717,0.000249,2]
[321434194,1712190639132,-1400.66199954,0.000249,2]
[321434195,1712190639143,-760.9322074,0.000249,2]
[321434196,1712190639153,-1285.39757445,0.000249,2]
[321434197,1712190639162,-1718.95257548,0.000249,2]
[321434198,1712190639170,-3677.53715924,0.000249,2]
[321434199,1712190639179,-7500.0,0.000249,2]
[321434200,1712190639189,-1227.90563202,0.000249,2]
[321434201,1712190639198,-150.0,0.00024926,2]
[321434202,1712190639209,-102639.5980939,0.0002499,2]
[321434203,1712190639219,-539.5141467,0.00024998,2]
[321434204,1712190639229,-1442.11523096,0.00024999,2]
[321434205,1712190639240,-150.01,0.00024999,2]
[321434206,1712190639250,-1315.03009678,0.00024999,2]
[321434207,1712190639260,-7206.58535054,0.00024999,2]
[321434208,1712190639270,-300.0,0.00024999,2]
[321434209,1712190639281,-300.0,0.00024999,2]
[321434210,1712190639291,-300.0,0.00024999,2]
[321434211,1712190639301,-300.0,0.00024999,2]
[321434212,1712190639311,-300.0,0.00024999,2]
[321434213,1712190639322,-178.40454926,0.00024999,2]
[321434214,1712190639332,-528.0,0.00025,2]
[321434215,1712190639342,-284.87714677,0.00025,2]
[321434216,1712190639352,-22880736.03407834,0.00025,2]
[321434217,1712190639364,-4545439.85316801,0.00025,2]
[321434218,1712190639373,-192009.10484507,0.00025,2]
[321434219,1712190639383,-155.0,0.00025,2]
[321434220,1712190639394,-2600.3152557,0.00025,2]
[321434221,1712190639404,-580477.79753841,0.00025,2]
[321434222,1712190639414,-403.0,0.00025,2]
[321434223,1712190639423,-300.0,0.00025,3]
[321434224,1712190639433,-1153.99,0.00025,2]
[321434225,1712190639443,-1074.65,0.00025,2]
[321434226,1712190639453,-1102.04,0.00025,2]
[321434227,1712190639462,-2030.62812396,0.00025,2]
[321434228,1712190639471,-2683.87032758,0.00025,2]
[321434229,1712190639480,-127607.48221531,0.00025,2]
[321434230,1712190639489,-66731.9781451,0.00025015,2]
[321434231,1712190639499,-163.75,0.00025032,2]
[321434232,1712190639509,-161.99,0.00025118,2]
[321434233,1712190639519,-163.75,0.00025832,2]
[321434234,1712190639529,-153.02,0.00026045,2]
[321434235,1712190639539,-210.0,0.00026102,2]
[321434236,1712190639548,-164.34,0.00026192,2]
[321434237,1712190639558,-17642.0,0.00026224,2]
[321434238,1712190639569,-996.82,0.0002624,2]
[321434239,1712190639579,-150.0,0.00026296,2]
[321434240,1712190639589,-1000.0,0.00026433,2]
[321434241,1712190639598,-4806.01,0.00026492,2]
[321434242,1712190639607,-163.75,0.00026632,2]
[321434243,1712190639616,-350.0,0.00027,3]
[321434244,1712190639626,-453.18,0.00027123,2]
[321434245,1712190639635,-688.97306,0.0002725,2]
[321434246,1712190639645,-178.76759759,0.00027397,2]
[321434247,1712190639654,-250.0,0.00027397,2]
[321434248,1712190639664,-163.75,0.00027432,2]
[321434249,1712190639673,-164.34,0.00028044,2]
[321434250,1712190639682,-163.75,0.00028232,2]
[321434251,1712190639692,-153.02,0.00028413,2]
[321434252,1712190639701,-8601.26261966,0.00028421,2]
[321434253,1712190639710,-996.82,0.00028504,2]
[321434254,1712190639719,-293.0,0.00028712,2]
[321434255,1712190639729,-560.18088397,0.00029,2]
[321434256,1712190639738,-400.0,0.00029,3]
[321434257,1712190639748,-4806.01,0.00029232,2]
[321434258,1712190639758,-1000.0,0.0002937,2]
[321434259,1712190639767,-973.0,0.000294,2]
[321434260,1712190639775,-440.96392074,0.000295,3]
[321434261,1712190639784,-1074.65,0.000297,2]
[321434262,1712190639793,-1102.04,0.000297,2]
[321434263,1712190639802,-688.97306,0.0002975,2]
[321434264,1712190639813,-164.34,0.00029897,2]
[321434265,1712190639824,-616.12469004,0.0002999,2]
[321434266,1712190639833,-405.14841286,0.0003,4]
[321434267,1712190639843,-155.0,0.0003,2]
[321434268,1712190639853,-3205.84389542,0.0003,2]
[321434269,1712190639862,-222.23500266,0.0003,7]
[321434270,1712190639871,-200.0,0.0003,7]
[321434271,1712190639880,-200.0,0.0003,7]
[321434272,1712190639890,-200.0,0.0003,7]
[321434273,1712190639899,-200.0,0.0003,7]
[321434274,1712190639908,-606.55912079,0.0003,4]
[321434275,1712190639918,-200.0,0.0003,7]
[321434276,1712190639927,-200.0,0.0003,7]
[321434277,1712190639936,-200.0,0.0003,7]
[321434278,1712190639948,-1048.57336967,0.0003,4]
[321434279,1712190639957,-200.0,0.0003,7]
[321434280,1712190639967,-200.0,0.0003,7]
[321434281,1712190639977,-150.0,0.0003,2]
[321434282,1712190639987,-200.0,0.0003,7]
[321434283,1712190639996,-200.0,0.0003,7]
[321434284,1712190640006,-200.0,0.0003,7]
[321434285,1712190640016,-206.0,0.0003,2]
[321434286,1712190640025,-1141.0,0.00030204,2]
[321434287,1712190640040,-1478.885,0.00030204,2]
[321434288,1712190640049,-3031.0,0.00030204,2]
[321434289,1712190640059,-397.0,0.00030204,2]
[321434290,1712190640071,-150.0,0.00030204,2]
[321434291,1712190640081,-1395.399,0.00030204,2]
[321434292,1712190640090,-1631.0,0.00030204,2]
[321434293,1712190640100,-171.0,0.00030204,2]
[321434294,1712190640110,-2188.154,0.00030204,2]
[321434295,1712190640120,-12822.962,0.00030204,2]
[321434296,1712190640130,-283.528,0.00030204,2]
[321434297,1712190640140,-538.0,0.00030204,2]
[321434298,1712190640150,-1049.0,0.00030204,2]
[321434299,1712190640159,-1270.0,0.00030204,2]
[321434300,1712190640169,-282.045,0.00030204,2]
[321434301,1712190640179,-434.0,0.00030204,2]
[321434302,1712190640188,-606.0,0.00030204,2]
[321434303,1712190640197,-373.0,0.000304,2]
[321434304,1712190640207,-996.82,0.00030768,2]
[321434305,1712190640216,-153.02,0.00030781,2]
[321434306,1712190640225,-450.0,0.00031,3]
[321434307,1712190640234,-1153.99,0.00031,2]
[321434308,1712190640243,-150.0,0.00031,3]
[321434309,1712190640252,-1000.0,0.00031307,2]
[321434310,1712190640262,-1000.0,0.00031322,2]
[321434311,1712190640271,-180.0,0.00031342,2]
[321434312,1712190640279,-411.0,0.00031583,3]
[321434313,1712190640289,-195.0,0.00031644,2]
[321434314,1712190640298,-164.34,0.0003175,2]
[321434315,1712190640306,-331.73260382,0.00032,4]
[321434316,1712190640317,-150.0,0.00032,5]
[321434317,1712190640326,-688.97306,0.0003225,2]
[321434318,1712190640335,-1000.0,0.00032307,2]
[321434319,1712190640344,-209.48496784,0.0003284,2]
[321434320,1712190640353,-2192.49,0.00032876,2]
[321434321,1712190640362,-2192.49,0.00032876,2]
[321434322,1712190640372,-2192.49,0.00032876,2]
[321434323,1712190640381,-2192.49,0.00032876,2]
[321434324,1712190640391,-2192.49,0.00032876,2]
[321434325,1712190640400,-2192.49,0.00032876,2]
[321434326,1712190640409,-2192.49,0.00032876,2]
[321434327,1712190640419,-2192.49,0.00032876,2]
[321434328,1712190640428,-2192.49,0.00032876,2]
[321434329,1712190640438,-2192.49,0.00032876,2]
[321434330,1712190640447,-2192.49,0.00032876,2]
[321434331,1712190640457,-2192.49,0.00032876,2]
[321434332,1712190640466,-2192.49,0.00032876,2]
[321434333,1712190640474,-2192.49,0.00032876,2]
[321434334,1712190640483,-2192.49,0.00032876,2]
[321434335,1712190640493,-2192.49,0.00032876,2]
[321434336,1712190640502,-2192.49,0.00032876,2]
[321434337,1712190640512,-2192.49,0.00032876,2]
[321434338,1712190640521,-2192.49,0.00032876,2]
[321434339,1712190640530,-2192.49,0.00032876,2]
[321434340,1712190640539,-2192.49,0.00032876,2]
[321434341,1712190640549,-2192.49,0.00032876,2]
[321434342,1712190640558,-2192.49,0.00032876,2]
[321434343,1712190640570,-2192.6260345,0.00032876,2]
[321434344,1712190640580,-156.25,0.00032877,2]
[321434345,1712190640589,-156.25,0.00032877,2]
[321434346,1712190640598,-156.25,0.00032877,2]
[321434347,1712190640607,-150.0,0.00032877,2]
[321434348,1712190640617,-228.26966719,0.000329,30]
[321434349,1712190640626,-500.0,0.00033,3]
[321434350,1712190640635,-287.62,0.00033,6]
[321434351,1712190640645,-206.0,0.00033,2]
[321434352,1712190640654,-996.82,0.00033032,2]
[321434353,1712190640663,-153.02,0.00033149,2]
[321434354,1712190640672,-1049.0,0.00033204,2]
[321434355,1712190640682,-1431.22,0.00033222,2]
[321434356,1712190640692,-1074.65,0.000333,2]
[321434357,1712190640701,-1102.04,0.000333,2]
[321434358,1712190640711,-150.0,0.00033742,2]
[321434359,1712190640720,-1200.0,0.00034,35]
[321434360,1712190640730,-152.0,0.00034509,3]
[321434361,1712190640740,-150.0,0.00034607,2]
[321434362,1712190640749,-152.0,0.00034725,4]
[321434363,1712190640759,-253.0,0.00034741,3]
[321434364,1712190640768,-688.97305,0.0003475,2]
[321434365,1712190640778,-9053.58976532,0.000348,4]
[321434366,1712190640788,-456.58,0.00034824,2]
[321434367,1712190640797,-2033.65,0.00034911,2]
[321434368,1712190640806,-152.0,0.00034941,5]
[321434369,1712190640818,-1281.21723531,0.00035,4]
[321434370,1712190640828,-2616.96942512,0.00035,4]
[321434371,1712190640837,-550.0,0.00035,3]
[321434372,1712190640847,-1199.99999906,0.00035,36]
[321434373,1712190640856,-152.0,0.00035158,6]
[321434374,1712190640866,-1000.0,0.00035245,2]
[321434375,1712190640875,-996.82,0.00035296,2]
[321434376,1712190640884,-152.0,0.00035374,7]
[321434377,1712190640894,-150.0,0.00035472,2]
[321434378,1712190640904,-153.02,0.00035516,2]
[321434379,1712190640913,-152.0,0.0003559,8]
[321434380,1712190640923,-152.0,0.00035807,9]
[321434381,1712190640933,-1153.99,0.000359,2]
[321434382,1712190640943,-151.0,0.000359,7]
[321434383,1712190640952,-151.0,0.000359,7]
[321434384,1712190640962,-1000.0,0.00035981,2]
[321434385,1712190640971,-600.0,0.00036,37]
[321434386,1712190640981,-152.0,0.00036023,10]
[321434387,1712190640990,-1000.0,0.00036031,2]
[321434388,1712190640999,-195.0,0.00036164,2]
[321434389,1712190641009,-152.0,0.0003624,11]
[321434390,1712190641018,-150.0,0.00036337,2]
[321434391,1712190641027,-152.0,0.00036456,12]
[321434392,1712190641037,-152.0,0.00036672,13]
[321434393,1712190641047,-1074.65,0.000368,7]
[321434394,1712190641057,-1102.04,0.000368,2]
[321434395,1712190641067,-152.0,0.00036889,14]
[321434396,1712190641076,-600.0,0.00037,3]
[321434397,1712190641085,-1200.0,0.00037,38]
[321434398,1712190641095,-12069.75,0.00037067,2]
[321434399,1712190641104,-6159.06,0.00037067,2]
[321434400,1712190641113,-19574.67,0.00037067,2]
[321434401,1712190641122,-151.0,0.00037067,7]
[321434402,1712190641133,-231.873222,0.00037067,7]
[321434403,1712190641142,-152.0,0.00037105,15]
[321434404,1712190641151,-150.0,0.00037203,2]
[321434405,1712190641160,-688.97306,0.0003725,2]
[321434406,1712190641169,-152.0,0.00037321,16]
[321434407,1712190641178,-152.0,0.00037538,17]
[321434408,1712190641188,-996.82,0.0003756,2]
[321434409,1712190641198,-152.0,0.00037754,18]
[321434410,1712190641208,-152.0,0.00037971,19]
[321434411,1712190641217,-281.50439349,0.00038,4]
[321434412,1712190641227,-600.0,0.00038,39]
[321434413,1712190641236,-1117.8,0.00038027,15]
[321434414,1712190641245,-150.0,0.00038068,2]
[321434415,1712190641254,-152.0,0.00038187,20]
[321434416,1712190641263,-1202.0,0.00038356,2]
[321434417,1712190641272,-6566.6,0.00038356,7]
[321434418,1712190641281,-152.0,0.00038403,21]
[321434419,1712190641291,-489.98833825,0.000385,4]
[321434420,1712190641300,-150.0,0.0003859,120]
[321434421,1712190641308,-152.0,0.0003862,22]
[321434422,1712190641320,-155.0,0.000387,4]
[321434423,1712190641330,-1000.0,0.00038764,30]
[321434424,1712190641339,-2951.40609765,0.000388,2]
[321434425,1712190641348,-152.0,0.00038836,23]
[321434426,1712190641358,-300.0,0.0003888,2]
[321434427,1712190641368,-4064.11230153,0.000389,15]
[321434428,1712190641378,-150.0,0.00038933,2]
[321434429,1712190641387,-650.0,0.00039,2]
[321434430,1712190641397,-23526.57874668,0.00039,2]
[321434431,1712190641407,-650.0,0.00039,3]
[321434432,1712190641416,-160.217089,0.00039,21]
[321434433,1712190641426,-156.25,0.00039001,2]
[321434434,1712190641436,-152.0,0.00039052,24]
[321434435,1712190641445,-1153.99,0.000391,7]
[321434436,1712190641455,-152.0,0.00039119,3]
[321434437,1712190641465,-1500.0,0.00039212,2]
[321434438,1712190641475,-150.0,0.00039256,2]
[321434439,1712190641485,-152.0,0.00039269,25]
[321434440,1712190641495,-152.0,0.00039269,5]
[321434441,1712190641505,-1074.65,0.000395,7]
[321434442,1712190641514,-1102.04,0.000395,7]
[321434443,1712190641525,-500.0,0.00039714,20]
[321434444,1712190641535,-578.30923369,0.00039742,12]
[321434445,1712190641545,-150.0,0.00039798,2]
[321434446,1712190641555,-996.82,0.00039823,2]
[321434447,1712190641566,-238.60921491,0.000399,48]
[321434448,1712190641575,-238.60921491,0.000399,48]
[321434449,1712190641584,-238.60921491,0.000399,48]
[321434450,1712190641592,-238.60921491,0.000399,48]
[321434451,1712190641602,-238.60921491,0.000399,48]
[321434452,1712190641612,-238.60921491,0.000399,48]
[321434453,1712190641621,-238.60921491,0.000399,48]
[321434454,1712190641630,-238.60921491,0.000399,48]
[321434455,1712190641640,-238.60921491,0.000399,48]
[321434456,1712190641649,-150.0,0.00039936,2]
[321434457,1712190641658,-2192.15682106,0.0004,30]
[321434458,1712190641668,-22098.16965284,0.0004,4]
[321434459,1712190641678,-192.70693193,0.0004,2]
[321434460,1712190641687,-5757.17728566,0.0004,4]
[321434461,1712190641697,-547.00820039,0.0004,4]
[321434462,1712190641707,-2859.79128481,0.0004,30]
[321434463,1712190641717,-1018.42220439,0.0004,60]
[321434464,1712190641728,-463.45136824,0.0004,15]
[321434465,1712190641739,-600.0,0.0004,41]
[321434466,1712190641748,-995.74,0.0004,2]
[321434467,1712190641758,-304.12,0.0004,2]
[321434468,1712190641767,-2580.97621685,0.0004,2]
[321434469,1712190641777,-2580.97621685,0.0004,2]
[321434470,1712190641787,-2580.97621685,0.0004,2]
[321434471,1712190641796,-2580.97621685,0.0004,2]
[321434472,1712190641806,-2580.97621685,0.0004,2]
[321434473,1712190641816,-2580.97621685,0.0004,2]
[321434474,1712190641827,-2580.97621685,0.0004,2]
[321434475,1712190641836,-2580.97621685,0.0004,2]
[321434476,1712190641846,-2580.97621685,0.0004,2]
[321434477,1712190641856,-2580.97621685,0.0004,2]
[321434478,1712190641865,-2580.97621685,0.0004,2]
[321434479,1712190641875,-2580.97621685,0.0004,2]
[321434480,1712190641884,-2580.97621685,0.0004,2]
[321434481,1712190641894,-2580.97621685,0.0004,2]
[321434482,1712190641904,-2580.97621685,0.0004,2]
[321434483,1712190641916,-2580.97621685,0.0004,2]
[321434484,1712190641925,-2580.97621685,0.0004,2]
[321434485,1712190641935,-2580.97621685,0.0004,2]
[321434486,1712190641944,-2580.97621685,0.0004,2]
[321434487,1712190641953,-2580.97621685,0.0004,2]
[321434488,1712190641963,-2580.97621685,0.0004,2]
[321434489,1712190641974,-2580.97621685,0.0004,2]
[321434490,1712190641984,-2580.97621685,0.0004,2]
[321434491,1712190641995,-2580.97621685,0.0004,2]
[321434492,1712190642007,-2580.97621685,0.0004,2]
[321434493,1712190642018,-2580.97621685,0.0004,2]
[321434494,1712190642213,-2580.97621685,0.0004,2]
[321434495,1712190642233,-2580.97621685,0.0004,2]
[321434496,1712190642242,-2580.97621685,0.0004,2]
[321434497,1712190642252,-2580.97621685,0.0004,2]
[321434498,1712190642261,-150.0,0.0004011,2]
[321434499,1712190642271,-68844.59928548,0.0004034,2]
[321434501,1712190642281,-150.0,0.00040363,2]
[321434502,1712190642291,-1003.02325464,0.0004037,3]
[321434503,1712190642300,-150.0,0.0004038,2]
[321434504,1712190642309,-150.0,0.00040384,2]
[321434505,1712190642319,-150.0,0.00040394,120]
[321434506,1712190642328,-475.260357,0.000404,2]
[321434508,1712190642338,-150.0,0.00040413,2]
[321434510,1712190642348,-150.0,0.00040426,2]
[321434512,1712190642357,-150.0,0.0004044,2]
[321434514,1712190642366,-150.0,0.00040448,2]
[321434516,1712190642376,-150.0,0.0004046,2]
[321434517,1712190642385,-150.0,0.00040461,2]
[321434518,1712190642395,-150.0,0.0004047,2]
[321434519,1712190642404,-1372.005788,0.0004048,17]
[321434520,1712190642414,-150.0,0.00040487,2]
[321434521,1712190642424,-150.0,0.00040489,2]
[321434522,1712190642434,-150.0,0.00040495,2]
[321434523,1712190642444,-150.0,0.00040499,2]
[321434524,1712190642454,-1000.0,0.000405,17]
[321434525,1712190642464,-150.0,0.0004051,2]
[321434526,1712190642473,-150.0,0.00040511,2]
[321434527,1712190642483,-150.0,0.0004052,2]
[321434528,1712190642493,-1000.0,0.0004052,17]
[321434529,1712190642503,-150.0,0.00040522,2]
[321434530,1712190642512,-150.0,0.00040526,2]
[321434531,1712190642521,-150.0,0.00040531,2]
[321434532,1712190642531,-150.0,0.00040536,2]
[321434533,1712190642541,-200.0,0.00040538,2]
[321434534,1712190642551,-279.52300476,0.00040538,2]
[321434535,1712190642560,-1000.0,0.0004054,17]
[321434536,1712190642571,-150.0,0.00040545,120]
[321434537,1712190642580,-1000.0,0.0004056,17]
[321434538,1712190642589,-150.0,0.00040568,2]
[321434539,1712190642598,-1000.0,0.0004057,3]
[321434540,1712190642608,-501.26262752,0.0004057,3]
[321434541,1712190642618,-150.0,0.00040574,2]
[321434542,1712190642628,-2000.0,0.0004058,7]
[321434543,1712190642637,-200.0,0.0004058,7]
[321434544,1712190642646,-1000.0,0.0004058,17]
[321434545,1712190642657,-150.0,0.00040582,2]
[321434546,1712190642667,-150.0,0.00040596,2]
[321434547,1712190642677,-480.0,0.000406,27]
[321434548,1712190642687,-150.0,0.000406,33]
[321434549,1712190642697,-961.0,0.000406,27]
[321434550,1712190642707,-299.71,0.000406,33]
[321434551,1712190642717,-238.034035,0.000406,15]
[321434552,1712190642727,-995.74,0.000406,2]
[321434553,1712190642737,-1000.0,0.000406,17]
[321434554,1712190642747,-304.12,0.000406,2]
[321434555,1712190642756,-1000.0,0.0004062,17]
[321434556,1712190642766,-1000.0,0.0004064,17]
[321434557,1712190642775,-1174.001929,0.0004064,17]
[321434558,1712190642784,-300.0,0.00040658,2]
[321434559,1712190642794,-1000.0,0.0004066,17]
[321434560,1712190642803,-1000.0,0.0004066,17]
[321434561,1712190642812,-150.0,0.00040663,2]